fUST/lending_fUST_20251010
["ID","MTS","AMOUNT","RATE_DAILY","PERIOD"]
[390645349,1760111438219,-300.0,0.00016319,2]
[390645350,1760111438230,-300.0,0.00016319,2]
[390645351,1760111438239,-300.0,0.00016319,2]
[390645352,1760111438248,-300.0,0.00016319,2]
[390645353,1760111438257,-600.0,0.00016319,2]
[390645354,1760111438269,-204.0,0.00016356,3]
[390645355,1760111438278,-233.3211373,0.000166,2]
[390645356,1760111438288,-666.0,0.00016998,2]
[390645357,1760111438297,-164.71814018,0.00017,2]
[390645358,1760111438307,-263.75432912,0.000172,2]
[390645359,1760111438318,-164.71814018,0.000172,2]
[390645360,1760111438329,-164.71814018,0.000174,2]
[390645361,1760111438338,-420.0,0.00017492,2]
[390645363,1760111438348,-1333.0,0.0001758,2]
[390645364,1760111438357,-257.27957504,0.00017771,2]
[390645366,1760111438367,-294.18752095,0.000178,2]
[390645368,1760111438376,-1041.66666667,0.0001782,2]
[390645370,1760111438386,-150.65942491,0.00017926,7]
[390645373,1760111438397,-234.32063665,0.00017942,2]
[390645375,1760111438407,-298.03512572,0.00017944,2]
[390645376,1760111438416,-160.0,0.00017946,2]
[390645377,1760111438426,-720.0,0.00017951,2]
[390645378,1760111438436,-457.3511894,0.00017973,2]
[390645379,1760111438445,-39445.20066774,0.00017973,2]
[390645380,1760111438455,-160.0,0.00017986,2]
[390645381,1760111438465,-164.28,0.0001799,3]
[390645382,1760111438475,-1000.0,0.00017999,2]
[390645383,1760111438484,-477.29356231,0.00018,2]
[390645384,1760111438494,-1350.58956979,0.00018,2]
[390645385,1760111438503,-181.14051502,0.00018,2]
[390645386,1760111438513,-202.13642157,0.00018,2]
[390645387,1760111438522,-199.75,0.00018,2]
[390645388,1760111438531,-203.84,0.00018,2]
[390645389,1760111438541,-201.36920788,0.00018,2]
[390645390,1760111438552,-199.75,0.00018,2]
[390645391,1760111438561,-500.0,0.00018,2]
[390645392,1760111438575,-797.24,0.00018046,3]
[390645393,1760111438585,-398.62,0.00018046,3]
[390645394,1760111438595,-199.31,0.00018046,3]
[390645395,1760111438604,-597.97,0.00018046,3]
[390645396,1760111438614,-492.84,0.00018046,3]
[390645397,1760111438624,-593.39,0.00018046,3]
[390645398,1760111438634,-500.0,0.00018055,2]
[390645399,1760111438644,-405.0,0.00018055,2]
[390645400,1760111438654,-500.0,0.00018055,2]
[390645401,1760111438664,-500.0,0.00018055,2]
[390645402,1760111438675,-500.0,0.00018055,2]
[390645403,1760111438685,-500.0,0.00018055,2]
[390645404,1760111438695,-349.11752473,0.00018055,2]
[390645405,1760111438705,-158.53820103,0.00018055,2]
[390645406,1760111438714,-500.0,0.00018055,2]
[390645407,1760111438724,-500.0,0.00018055,2]
[390645408,1760111438734,-500.0,0.00018055,2]
[390645409,1760111438744,-500.0,0.00018055,2]
[390645410,1760111438754,-500.0,0.00018055,2]
[390645411,1760111438763,-500.0,0.00018055,2]
[390645412,1760111438772,-251.27753143,0.00018055,2]
[390645413,1760111438782,-500.0,0.00018055,2]
[390645415,1760111438791,-158.3242251,0.00018055,2]
[390645416,1760111438801,-500.0,0.00018055,2]
[390645418,1760111438811,-500.0,0.00018055,2]
[390645420,1760111438825,-500.0,0.00018055,2]
[390645421,1760111438835,-500.0,0.00018055,2]
[390645422,1760111438845,-500.0,0.00018055,2]
[390645423,1760111438854,-500.0,0.00018055,2]
[390645424,1760111438864,-362.01071484,0.00018055,2]
[390645425,1760111438874,-411.27984897,0.00018055,2]
[390645426,1760111438884,-599.58780643,0.00018055,2]
[390645427,1760111438894,-500.0,0.00018055,2]
[390645429,1760111438904,-500.0,0.00018055,2]
[390645430,1760111438914,-500.0,0.00018055,2]
[390645431,1760111438924,-293.19958611,0.00018055,2]
[390645432,1760111438933,-500.0,0.00018055,2]
[390645433,1760111438943,-500.0,0.00018055,2]
[390645434,1760111438953,-347392.32642206,0.00018056,2]
[390645435,1760111438963,-500.0,0.00018073,2]
[390645436,1760111438973,-500.0,0.00018073,2]
[390645437,1760111438982,-161.86847584,0.00018073,2]
[390645438,1760111438992,-642.55581265,0.00018073,2]
[390645439,1760111439002,-500.0,0.00018073,2]
[390645440,1760111439012,-500.0,0.00018073,2]
[390645441,1760111439021,-500.0,0.00018073,2]
[390645442,1760111439031,-500.0,0.00018073,2]
[390645443,1760111439040,-500.0,0.00018073,2]
[390645444,1760111439050,-500.0,0.00018073,2]
[390645445,1760111439060,-500.0,0.00018073,2]
[390645446,1760111439074,-500.0,0.00018073,2]
[390645447,1760111439083,-500.0,0.00018073,2]
[390645448,1760111439093,-500.0,0.00018073,2]
[390645449,1760111439103,-157.30324439,0.00018073,2]
[390645450,1760111439112,-500.0,0.00018073,2]
[390645451,1760111439122,-500.86991837,0.00018073,2]
[390645452,1760111439132,-500.0,0.00018073,2]
[390645453,1760111439142,-500.0,0.00018073,2]
[390645454,1760111439152,-500.0,0.00018073,2]
[390645456,1760111439337,-500.0,0.00018073,2]
[390645457,1760111439360,-500.0,0.00018073,2]
[390645458,1760111439370,-500.0,0.00018073,2]
[390645459,1760111439380,-477.29356231,0.000182,2]
[390645460,1760111439389,-1350.58956979,0.000182,2]
[390645461,1760111439399,-181.14051502,0.000182,2]
[390645462,1760111439410,-201.36920788,0.000182,2]
[390645463,1760111439419,-168.10077245,0.00018249,2]
[390645464,1760111439429,-500.0,0.00018274,2]
[390645465,1760111439438,-310.28,0.00018316,2]
[390645466,1760111439447,-477.29356231,0.000184,2]
[390645467,1760111439456,-1350.58956979,0.000184,2]
[390645468,1760111439466,-181.14051502,0.000184,2]
[390645469,1760111439475,-324.62071277,0.000184,2]
[390645470,1760111439484,-279.0,0.00018487,2]
[390645471,1760111439493,-477.29356231,0.000185,2]
[390645472,1760111439503,-1350.58956979,0.000185,2]
[390645473,1760111439512,-360.21253829,0.000185,2]
[390645475,1760111439521,-181.14051502,0.000185,2]
[390645476,1760111439530,-279.0,0.00018536,2]
[390645478,1760111439539,-500.0,0.00018548,2]
[390645480,1760111439549,-279.0,0.00018582,2]
[390645481,1760111439558,-3283.95,0.00018607,2]
[390645483,1760111439569,-1000.0,0.00018621,2]
[390645485,1760111439579,-422.24383392,0.00018621,2]
[390645487,1760111439588,-500.0,0.00018621,2]
[390645489,1760111439597,-467.37987447,0.00018621,2]
[390645490,1760111439606,-500.0,0.00018621,2]
[390645492,1760111439615,-194.8740898,0.00018621,2]
[390645494,1760111439624,-1000.0,0.00018621,2]
[390645496,1760111439634,-1000.0,0.00018621,2]
[390645498,1760111439643,-1000.0,0.00018621,2]
[390645500,1760111439653,-1000.0,0.00018621,2]
[390645502,1760111439663,-1000.0,0.00018621,2]
[390645504,1760111439672,-500.0,0.00018625,2]
[390645506,1760111439681,-500.86697932,0.00018629,2]
[390645508,1760111439690,-6379.92993034,0.0001863,7]
[390645510,1760111439700,-980.0,0.00018677,2]
[390645512,1760111439710,-411.0,0.00018677,2]
[390645514,1760111439718,-414.167,0.00018677,2]
[390645516,1760111439728,-2159.0,0.00018677,2]
[390645518,1760111439737,-630.0,0.00018677,2]
[390645520,1760111439746,-250.0,0.00018677,2]
[390645522,1760111439755,-4195.0,0.00018677,2]
[390645524,1760111439764,-477.29356231,0.000187,2]
[390645526,1760111439774,-1350.58956979,0.000187,2]
[390645528,1760111439784,-181.14051502,0.000187,2]
[390645529,1760111439793,-120200.0,0.000187,2]
[390645531,1760111439803,-279.0,0.00018731,2]
[390645533,1760111439813,-248.04596635,0.00018814,2]
[390645535,1760111439824,-351.45523641,0.00018814,2]
[390645537,1760111439834,-151.0,0.00018814,2]
[390645539,1760111439846,-18603.8837,0.00018814,2]
[390645541,1760111439855,-500.0,0.00018814,2]
[390645543,1760111439865,-500.0,0.00018814,2]
[390645545,1760111439875,-500.0,0.00018814,2]
[390645547,1760111439884,-500.0,0.00018814,2]
[390645549,1760111439893,-500.0,0.00018814,2]
[390645550,1760111439902,-500.0,0.00018814,2]
[390645552,1760111439911,-500.0,0.00018814,2]
[390645554,1760111439921,-500.0,0.00018814,2]
[390645556,1760111439930,-500.0,0.00018814,2]
[390645558,1760111439939,-500.0,0.00018814,2]
[390645560,1760111439948,-500.0,0.00018814,2]
[390645562,1760111439957,-500.0,0.00018814,2]
[390645564,1760111439967,-500.0,0.00018814,2]
[390645566,1760111439976,-500.0,0.00018814,2]
[390645568,1760111439985,-500.0,0.00018814,2]
[390645569,1760111439994,-500.0,0.00018814,2]
[390645571,1760111440003,-500.0,0.00018814,2]
[390645573,1760111440014,-500.0,0.00018814,2]
[390645575,1760111440024,-500.0,0.00018822,2]
[390645577,1760111440033,-279.0,0.00018856,2]
[390645579,1760111440043,-279.0,0.00018897,2]
[390645581,1760111440051,-1350.58956979,0.000189,2]
[390645583,1760111440061,-302.57643837,0.000189,2]
[390645585,1760111440074,-279.0,0.00018905,2]
[390645587,1760111440083,-279.0,0.00018936,2]
[390645588,1760111440093,-279.0,0.00018948,2]
[390645590,1760111440103,-279.0,0.00018986,2]
[390645592,1760111440112,-890.61339424,0.0001899,2]
[390645594,1760111440122,-1013.92,0.00019,2]
[390645596,1760111440132,-355.05390459,0.00019,2]
[390645598,1760111440141,-279.0,0.00019076,2]
[390645600,1760111440151,-273.3215232,0.00019089,2]
[390645602,1760111440160,-500.0,0.00019096,2]
[390645603,1760111440169,-1350.58956979,0.000191,2]
[390645604,1760111440184,-279.0,0.00019102,2]
[390645606,1760111440193,-587.0,0.00019125,2]
[390645607,1760111440203,-279.0,0.00019142,2]
[390645608,1760111440212,-1500.0,0.00019168,2]
[390645610,1760111440223,-1500.0,0.00019168,2]
[390645613,1760111440232,-1500.0,0.00019168,2]
[390645615,1760111440242,-1500.0,0.00019168,2]
[390645617,1760111440252,-1500.0,0.00019168,2]
[390645619,1760111440263,-179.71246006,0.000192,2]
[390645620,1760111440272,-457.35118938,0.00019205,2]
[390645621,1760111440281,-279.0,0.00019242,2]
[390645622,1760111440291,-279.0,0.00019278,2]
[390645624,1760111440300,-1350.58956979,0.000193,2]
[390645626,1760111440310,-160.0,0.00019305,2]
[390645628,1760111440331,-279.0,0.00019314,2]
[390645630,1760111440342,-279.0,0.00019352,2]
[390645631,1760111440352,-279.0,0.00019359,2]
[390645633,1760111440362,-328.56,0.0001936,3]
[390645637,1760111440373,-18603.8837,0.00019362,2]
[390645640,1760111440383,-500.0,0.0001937,2]
[390645643,1760111440392,-279.0,0.00019371,2]
[390645646,1760111440402,-2000.0,0.000194,2]
[390645648,1760111440412,-2000.0,0.000194,2]
[390645650,1760111440422,-1594.48,0.00019416,3]
[390645652,1760111440432,-797.24,0.00019416,3]
[390645654,1760111440441,-398.62,0.00019416,3]
[390645656,1760111440451,-6567.9,0.00019493,2]
[390645658,1760111440461,-1350.58956979,0.000195,2]
[390645660,1760111440471,-800.0,0.00019527,2]
[390645662,1760111440481,-151.0001049,0.00019567,2]
[390645664,1760111440491,-151.0,0.00019567,2]
[390645666,1760111440500,-247.39966697,0.00019567,2]
[390645668,1760111440509,-151.0,0.00019567,2]
[390645669,1760111440519,-151.0,0.00019567,2]
[390645671,1760111440529,-385.48709641,0.000196,2]
[390645673,1760111440539,-279.0,0.00019609,2]
[390645675,1760111440550,-151.0,0.00019622,2]
[390645677,1760111440559,-151.0,0.00019622,2]
[390645680,1760111440571,-151.0,0.00019622,2]
[390645682,1760111440581,-151.0,0.00019622,2]
[390645683,1760111440591,-257.27957504,0.00019641,2]
[390645685,1760111440600,-500.0,0.00019644,2]
[390645687,1760111440610,-151.0,0.00019677,2]
[390645690,1760111440620,-151.0,0.00019677,2]
[390645691,1760111440630,-1350.58956979,0.000197,2]
[390645693,1760111440640,-279.0,0.00019702,2]
[390645696,1760111440649,-2000.0,0.00019716,2]
[390645697,1760111440659,-2000.0,0.00019716,2]
[390645699,1760111440669,-756.59084505,0.00019716,2]
[390645701,1760111440679,-2000.0,0.00019716,2]
[390645703,1760111440688,-2000.0,0.00019716,2]
[390645706,1760111440698,-153.63453505,0.00019731,2]
[390645708,1760111440707,-279.0,0.00019745,2]
[390645709,1760111440717,-864.0,0.00019746,2]
[390645711,1760111440728,-279.0,0.00019764,2]
[390645713,1760111440738,-158.0,0.000198,2]
[390645716,1760111440747,-158.0,0.000198,2]
[390645717,1760111440757,-158.0,0.000198,2]
[390645719,1760111440767,-260.0,0.00019853,2]
[390645721,1760111440777,-279.0,0.00019875,2]
[390645723,1760111440787,-500.0,0.00019918,2]
[390645726,1760111440797,-279.0,0.0002011,2]
[390645727,1760111440806,-800.0,0.00020158,2]
[390645730,1760111440816,-500.0,0.00020192,2]
[390645731,1760111440831,-415.92028823,0.000202,2]
[390645734,1760111440842,-2500.0,0.00020264,2]
[390645736,1760111440851,-2500.0,0.00020264,2]
[390645738,1760111440861,-2500.0,0.00020264,2]
[390645740,1760111440871,-2500.0,0.00020264,2]
[390645741,1760111440881,-9851.85,0.00020379,2]
[390645744,1760111440891,-2000.0,0.000204,2]
[390645746,1760111440902,-2000.0,0.000204,2]
[390645748,1760111440911,-360.0,0.00020401,2]
[390645749,1760111440921,-457.35118938,0.00020437,2]
[390645751,1760111440930,-500.0,0.00020466,2]
[390645753,1760111440939,-1282.2280094,0.00020559,2]
[390645755,1760111440949,-800.0,0.00020598,2]
[390645757,1760111440958,-900.0,0.00020712,2]
[390645759,1760111440968,-446.35348005,0.000208,2]
[390645761,1760111440978,-3000.0,0.00020812,2]
[390645763,1760111440987,-3000.0,0.00020812,2]
[390645765,1760111440997,-2471.93789816,0.00020812,2]
[390645767,1760111441006,-3000.0,0.00020812,2]
[390645769,1760111441016,-166.0,0.00020831,2]
[390645771,1760111441025,-166.0,0.00020831,2]
[390645773,1760111441035,-166.0,0.00020831,2]
[390645775,1760111441044,-166.0,0.00020831,2]
[390645777,1760111441054,-823.0,0.0002091,2]
[390645779,1760111441064,-460.0,0.00020949,2]
[390645781,1760111441078,-158.0,0.00021,3]
[390645783,1760111441088,-158.0,0.00021,3]
[390645785,1760111441098,-158.0,0.00021,3]
[390645787,1760111441108,-1282.2280094,0.00021003,2]
[390645789,1760111441117,-250.0,0.00021009,2]
[390645792,1760111441137,-800.4747066,0.00021099,2]
[390645794,1760111441152,-1282.2280094,0.0002115,2]
[390645797,1760111441166,-39445.20066773,0.00021187,2]
[390645799,1760111441179,-13135.81,0.00021265,2]
[390645802,1760111441196,-3500.0,0.0002136,2]
[390645804,1760111441207,-3500.0,0.0002136,2]
[390645806,1760111441217,-3500.0,0.0002136,2]
[390645808,1760111441232,-1097.2,0.000214,2]
[390645810,1760111441245,-1097.4,0.000214,2]
[390645813,1760111441256,-476.78667188,0.000214,2]
[390645815,1760111441271,-560.0,0.00021497,2]
[390645817,1760111441285,-1702.800792,0.000215,2]
[390645820,1760111441299,-257.27957504,0.00021512,2]
[390645822,1760111441312,-170.57967988,0.00021561,2]
[390645824,1760111441327,-1282.2280094,0.00021597,2]
[390645827,1760111441340,-625.90263283,0.000216,5]
[390645829,1760111441354,-664.432,0.00021616,2]
[390645832,1760111441367,-800.0,0.00021664,2]
[390645834,1760111441380,-457.35118938,0.00021668,2]
[390645836,1760111441392,-980.0,0.00021677,2]
[390645838,1760111441403,-411.0,0.00021677,2]
[390645841,1760111441416,-411.0,0.00021677,2]
[390645843,1760111441431,-2159.0,0.00021677,2]
[390645845,1760111441444,-630.0,0.00021677,2]
[390645847,1760111441455,-150.0,0.00021677,2]
[390645850,1760111441468,-1000.0,0.00021721,20]
[390645852,1760111441480,-1282.2280094,0.00021737,2]
[390645854,1760111441495,-500.0,0.00021784,2]
[390645856,1760111441506,-900.0,0.00021808,2]
[390645859,1760111441518,-502.26698452,0.00021828,2]
[390645861,1760111441529,-500.0,0.00021853,2]
[390645863,1760111441539,-500.0,0.00021858,2]
[390645865,1760111441550,-500.0,0.00021891,2]
[390645867,1760111441562,-4000.0,0.00021908,2]
[390645869,1760111441576,-4000.0,0.00021908,2]
[390645871,1760111441587,-4000.0,0.00021908,2]
[390645874,1760111441600,-177.69924912,0.00021918,2]
[390645876,1760111441612,-175.0,0.00021918,2]
[390645878,1760111441623,-500.0,0.00021933,2]
[390645880,1760111441637,-500.0,0.00021939,2]
[390645883,1760111441648,-1000.0,0.00022,2]
[390645885,1760111441660,-507.2198637,0.00022,2]
[390645887,1760111441673,-500.0,0.00022006,2]
[390645889,1760111441684,-302.54622905,0.00022017,8]
[390645892,1760111441698,-800.0,0.00022024,2]
[390645894,1760111441709,-660.0,0.00022045,2]
[390645896,1760111441721,-600.0,0.0002208,2]
[390645898,1760111441732,-800.0,0.00022095,2]
[390645900,1760111441742,-200.0,0.000221,7]
[390645902,1760111441752,-999.62157341,0.00022102,2]
[390645904,1760111441762,-500.0,0.00022116,2]
[390645906,1760111441773,-500.0,0.00022137,2]
[390645908,1760111441784,-16419.76,0.00022151,2]
[390645911,1760111441796,-514.16999034,0.00022167,2]
[390645913,1760111441809,-1282.2280094,0.00022168,2]
[390645915,1760111441823,-201.0,0.0002219,3]
[390645918,1760111441835,-1282.2280094,0.00022255,2]
[390645920,1760111441845,-800.0,0.00022291,2]
[390645922,1760111441856,-2593.38746309,0.0002231,2]
[390645924,1760111441868,-601.56279864,0.0002231,2]
[390645926,1760111441879,-500.0,0.00022354,2]
[390645928,1760111441892,-500.0,0.00022406,2]
[390645931,1760111441904,-500.0,0.00022446,2]
[390645933,1760111441914,-4500.0,0.00022456,2]
[390645935,1760111441924,-4500.0,0.00022456,2]
[390645937,1760111441935,-4500.0,0.00022456,2]
[390645939,1760111441945,-500.0,0.00022499,2]
[390645941,1760111441956,-155.752932,0.000225,4]
[390645943,1760111441967,-1000.0,0.000225,2]
[390645945,1760111441977,-800.0,0.00022503,2]
[390645947,1760111441988,-1282.22800941,0.00022507,2]
[390645949,1760111441999,-500.0,0.0002252,2]
[390645950,1760111442010,-500.0,0.00022536,2]
[390645951,1760111442021,-500.0,0.00022571,2]
[390645952,1760111442031,-500.0,0.00022591,2]
[390645953,1760111442042,-760.0,0.00022593,2]
[390645954,1760111442052,-1000.0,0.00022599,4]
[390645955,1760111442063,-537.65305552,0.000226,2]
[390645956,1760111442076,-500.0,0.00022741,2]
[390645957,1760111442087,-334.32321631,0.000228,5]
[390645958,1760111442097,-500.0,0.00022829,2]
[390645959,1760111442108,-1152.0,0.00022862,2]
[390645960,1760111442119,-500.0,0.0002288,2]
[390645961,1760111442129,-500.0,0.0002288,2]
[390645962,1760111442140,-457.35118938,0.000229,2]
[390645965,1760111442152,-900.0,0.00022904,2]
[390645967,1760111442172,-500.0,0.00022921,2]
[390645969,1760111442186,-500.0,0.00022926,2]
[390645971,1760111442199,-391.8516513,0.00022971,2]
[390645974,1760111442210,-500.0,0.00022973,2]
[390645976,1760111442221,-500.0,0.00022973,2]
[390645978,1760111442232,-500.0,0.00022973,2]
[390645980,1760111442243,-500.0,0.00022973,2]
[390645982,1760111442255,-500.0,0.00022973,2]
[390645984,1760111442266,-500.0,0.00022973,2]
[390645987,1760111442277,-500.17428789,0.00022973,2]
[390645989,1760111442287,-500.0,0.00022973,2]
[390645991,1760111442299,-500.0,0.00022973,2]
[390645993,1760111442309,-500.0,0.00022973,2]
[390645995,1760111442319,-500.0,0.00022973,2]
[390645997,1760111442334,-500.0,0.00022973,2]
[390646000,1760111442344,-500.0,0.00022973,2]
[390646002,1760111442355,-500.0,0.00022973,2]
[390646004,1760111442366,-500.0,0.00022973,2]
[390646006,1760111442376,-500.0,0.00022973,2]
[390646008,1760111442387,-500.0,0.00022973,2]
[390646010,1760111442398,-500.0,0.00022973,2]
[390646012,1760111442409,-500.0,0.00022973,2]
[390646014,1760111442420,-500.0,0.00022973,2]
[390646017,1760111442432,-500.0,0.00022973,2]
[390646019,1760111442443,-500.0,0.00022973,2]
[390646021,1760111442455,-500.0,0.00022973,2]
[390646023,1760111442467,-500.0,0.00022973,2]
[390646025,1760111442478,-500.0,0.00022973,2]
[390646027,1760111442489,-500.0,0.00022973,2]
[390646030,1760111442501,-175.10196491,0.00022973,2]
[390646032,1760111442512,-500.0,0.00022973,2]
[390646034,1760111442523,-500.0,0.00022973,2]
[390646036,1760111442534,-800.0,0.00022979,2]
[390646038,1760111442547,-2028.6353394,0.00022998,2]
[390646040,1760111442558,-1524.9164023,0.00022998,2]
[390646043,1760111442570,-943.4379337,0.00022998,2]
[390646045,1760111442585,-3017.8425581,0.00022998,2]
[390646047,1760111442597,-74656.19139858,0.00023,7]
[390646049,1760111442608,-1041.66666667,0.00023,7]
[390646051,1760111442619,-39883.34684989,0.00023,7]
[390646054,1760111442630,-6636.11151213,0.00023,2]
[390646056,1760111442640,-160.0,0.00023,7]
[390646058,1760111442651,-151.0,0.00023,10]
[390646060,1760111442662,-158.0,0.00023,7]
[390646062,1760111442673,-158.0,0.00023,7]
[390646064,1760111442684,-158.0,0.00023,7]
[390646066,1760111442695,-298.03512572,0.00023,7]
[390646069,1760111442706,-151.0,0.00023,7]
[390646071,1760111442716,-286.789487,0.00023,7]
[390646073,1760111442727,-151.0,0.00023,7]
[390646075,1760111442738,-151.0,0.00023,7]
[390646077,1760111442748,-151.0,0.00023,7]
[390646079,1760111442759,-151.0,0.00023,7]
[390646081,1760111442770,-151.0,0.00023,7]
[390646084,1760111442781,-151.0,0.00023,7]
[390646086,1760111442791,-151.0,0.00023,7]
[390646088,1760111442802,-151.0,0.00023,7]
[390646090,1760111442813,-151.0,0.00023,7]
[390646092,1760111442825,-207.763216,0.00023,7]
[390646094,1760111442835,-207.763216,0.00023,7]
[390646096,1760111442847,-207.763216,0.00023,7]
[390646098,1760111442858,-151.0,0.00023,7]
[390646101,1760111442869,-207.763216,0.00023,7]
[390646103,1760111442879,-239.06881,0.00023,7]
[390646105,1760111442890,-151.0,0.00023,7]
[390646107,1760111442901,-151.0,0.00023,7]
[390646109,1760111442912,-151.0,0.00023,7]
[390646111,1760111442923,-151.0,0.00023,7]
[390646114,1760111442934,-151.0,0.00023,7]
[390646116,1760111442944,-151.0,0.00023,7]
[390646118,1760111442955,-160.0,0.00023,3]
[390646120,1760111442966,-151.681857,0.00023,7]
[390646122,1760111442977,-151.0,0.00023,7]
[390646125,1760111442988,-160.0,0.00023,3]
[390646127,1760111442998,-188.41805,0.00023,7]
[390646129,1760111443010,-151.0,0.00023,7]
[390646131,1760111443020,-188.41805,0.00023,7]
[390646133,1760111443030,-188.41805,0.00023,7]
[390646135,1760111443041,-188.41805,0.00023,7]
[390646138,1760111443052,-151.0,0.00023,7]
[390646140,1760111443063,-151.0,0.00023,7]
[390646142,1760111443075,-151.0,0.00023,7]
[390646144,1760111443086,-151.0,0.00023,7]
[390646146,1760111443098,-155.752932,0.00023,3]
[390646149,1760111443110,-155.752932,0.00023,5]
[390646151,1760111443120,-155.752932,0.00023,14]
[390646153,1760111443131,-151.0,0.00023,7]
[390646155,1760111443141,-151.0,0.00023,7]
[390646157,1760111443153,-151.0,0.00023,7]
[390646159,1760111443164,-151.0,0.00023,7]
[390646162,1760111443176,-151.0,0.00023,7]
[390646199,1760111443407,-151.0,0.00023,7]
[390646206,1760111443426,-151.0,0.00023,7]
[390646208,1760111443436,-153.085781,0.00023,7]
[390646210,1760111443445,-151.0,0.00023,7]
[390646213,1760111443455,-151.0,0.00023,7]
[390646215,1760111443464,-151.0,0.00023,2]
[390646217,1760111443474,-151.402919,0.00023,7]
[390646219,1760111443483,-151.0,0.00023,7]
[390646222,1760111443492,-1000.0,0.00023,2]
[390646225,1760111443501,-160.0,0.00023,7]
[390646228,1760111443510,-162.0,0.00023,7]
[390646231,1760111443519,-160.0,0.00023,3]
[390646234,1760111443528,-261.392589,0.00023,7]
[390646237,1760111443537,-151.0,0.00023,7]
[390646240,1760111443547,-255.287041,0.00023,7]
[390646243,1760111443556,-255.287041,0.00023,7]
[390646246,1760111443565,-255.287041,0.00023,7]
[390646249,1760111443576,-255.287041,0.00023,7]
[390646252,1760111443586,-151.0,0.00023,7]
[390646255,1760111443595,-153.062202,0.00023,7]
[390646258,1760111443603,-152.003691,0.00023,7]
[390646260,1760111443612,-151.0,0.00023,7]
[390646263,1760111443622,-151.0,0.00023,7]
[390646266,1760111443631,-535.230018,0.00023,7]
[390646269,1760111443640,-535.230018,0.00023,7]
[390646272,1760111443649,-151.0,0.00023,7]
[390646275,1760111443658,-535.230018,0.00023,7]
[390646278,1760111443668,-535.230018,0.00023,7]
[390646281,1760111443677,-2750.165056,0.00023,7]
[390646284,1760111443686,-2750.165056,0.00023,7]
[390646287,1760111443695,-2750.165056,0.00023,7]
[390646290,1760111443704,-2750.165056,0.00023,7]
[390646293,1760111443714,-151.0,0.00023,7]
[390646296,1760111443724,-151.0,0.00023,7]
[390646299,1760111443733,-151.0,0.00023,7]
[390646302,1760111443743,-151.921519,0.00023,7]
[390646305,1760111443752,-151.255087,0.00023,7]
[390646308,1760111443761,-151.0,0.00023,7]
[390646311,1760111443770,-151.0,0.00023,7]
[390646314,1760111443780,-151.0,0.00023,7]
[390646317,1760111443789,-153.16741,0.00023,7]
[390646320,1760111443798,-151.0,0.00023,7]
[390646322,1760111443808,-151.0,0.00023,7]
[390646324,1760111443817,-345.478907,0.00023,7]
[390646326,1760111443828,-345.478907,0.00023,7]
[390646328,1760111443838,-151.0,0.00023,7]
[390646330,1760111443847,-345.478907,0.00023,7]